fUST/lending_fUST_20240826
["ID","MTS","AMOUNT","RATE_DAILY","PERIOD"]
[336033143,1724674049908,-500.0,0.00012353,2]
[336033144,1724674049928,-507.45,0.00012353,2]
[336033145,1724674049949,-865.69,0.00012353,2]
[336033146,1724674049971,-723.59,0.00012353,2]
[336033147,1724674049993,-500.0,0.00012353,2]
[336033148,1724674050013,-500.0,0.00012353,2]
[336033149,1724674050034,-553.03,0.00012353,2]
[336033150,1724674050053,-703.51,0.00012353,2]
[336033151,1724674050075,-500.0,0.00012353,2]
[336033152,1724674050098,-500.0,0.00012353,2]
[336033153,1724674050119,-500.0,0.00012353,2]
[336033154,1724674050140,-611.28,0.00012353,2]
[336033155,1724674050162,-500.0,0.00012353,2]
[336033156,1724674050184,-502.14894993,0.00012353,2]
[336033157,1724674050206,-500.0,0.00012353,2]
[336033158,1724674050226,-698.73,0.00012353,2]
[336033159,1724674050246,-500.0,0.00012353,2]
[336033160,1724674050268,-667.84,0.00012353,2]
[336033161,1724674050288,-844.21,0.00012353,2]
[336033162,1724674050309,-500.0,0.00012353,2]
[336033163,1724674050330,-1150.45,0.00012353,2]
[336033164,1724674050350,-500.0,0.00012353,2]
[336033165,1724674050370,-500.0,0.00012353,2]
[336033166,1724674050392,-500.0,0.00012353,2]
[336033167,1724674050412,-1374.22,0.00012353,2]
[336033168,1724674050432,-500.0,0.00012353,2]
[336033169,1724674050452,-503.29632793,0.00012353,2]
[336033170,1724674050473,-500.0,0.00012353,2]
[336033171,1724674050493,-500.0,0.00012353,2]
[336033172,1724674050514,-500.0,0.00012353,2]
[336033173,1724674050534,-500.0,0.00012353,2]
[336033174,1724674050555,-500.0,0.00012353,2]
[336033175,1724674050577,-500.0,0.00012353,2]
[336033176,1724674050597,-500.0,0.00012353,2]
[336033177,1724674050618,-1036.82,0.00012353,2]
[336033178,1724674050639,-500.0,0.00012353,2]
[336033179,1724674050661,-500.0,0.00012353,2]
[336033180,1724674050682,-512.45,0.00012353,2]
[336033181,1724674050702,-500.0,0.00012353,2]
[336033182,1724674050722,-706.67,0.00012353,2]
[336033183,1724674050742,-586.08,0.00012353,2]
[336033184,1724674050762,-500.0,0.00012353,2]
[336033185,1724674050784,-500.0,0.00012353,2]
[336033186,1724674050804,-500.0,0.00012353,2]
[336033187,1724674050826,-500.0,0.00012353,2]
[336033188,1724674050848,-500.0,0.00012353,2]
[336033189,1724674050869,-1016.3,0.00012353,2]
[336033190,1724674050891,-24664.18,0.00012353,2]
[336033191,1724674050913,-500.0,0.00012353,2]
[336033192,1724674050932,-500.0,0.00012353,2]
[336033193,1724674050953,-500.0,0.00012353,2]
[336033194,1724674050974,-500.0,0.00012353,2]
[336033195,1724674050994,-500.0,0.00012353,2]
[336033196,1724674051015,-500.0,0.00012353,2]
[336033197,1724674051035,-500.0,0.00012353,2]
[336033198,1724674051055,-1088.5,0.00012353,2]
[336033199,1724674051076,-500.0,0.00012353,2]
[336033200,1724674051100,-500.0,0.00012353,2]
[336033201,1724674051122,-500.0,0.00012353,2]
[336033202,1724674051145,-1056.12,0.00012353,2]
[336033203,1724674051166,-687.59,0.00012353,2]
[336033204,1724674051189,-500.0,0.00012353,2]
[336033205,1724674051209,-500.0,0.00012353,2]
[336033206,1724674051231,-500.0,0.00012353,2]
[336033207,1724674051252,-500.0,0.00012353,2]
[336033208,1724674051275,-500.0,0.00012353,2]
[336033209,1724674051296,-500.0,0.00012353,2]
[336033210,1724674051316,-500.0,0.00012353,2]
[336033211,1724674051336,-504.99077452,0.00012353,2]
[336033212,1724674051356,-500.0,0.00012353,2]
[336033213,1724674051378,-861.11,0.00012353,2]
[336033214,1724674051404,-702.45,0.00012353,2]
[336033215,1724674051424,-500.0,0.00012353,2]
[336033216,1724674051446,-542.3,0.00012353,2]
[336033217,1724674051467,-500.0,0.00012353,2]
[336033218,1724674051489,-960.72,0.00012353,2]
[336033219,1724674051509,-500.0,0.00012353,2]
[336033220,1724674051530,-522.05021628,0.00012353,2]
[336033221,1724674051551,-311.71818133,0.00012353,2]
[336033231,1724674190571,1344.7188845,0.00011464,2]
[336033233,1724674239263,-300.0,0.00012343,2]
[336033234,1724674239272,-12700.69023321,0.00012344,2]
[336033268,1724674239924,-2197.86907139,0.00012344,2]
[336033270,1724674239934,-500.0,0.00012352,2]
[336033272,1724674239944,-658.94,0.00012352,2]
[336033274,1724674239954,-673.18,0.00012352,2]
[336033276,1724674239964,-500.0,0.00012352,2]
[336033278,1724674239973,-1287.87,0.00012352,2]
[336033280,1724674239983,-500.0,0.00012352,2]
[336033282,1724674239993,-627.18,0.00012352,2]
[336033284,1724674240002,-614.58,0.00012352,2]
[336033286,1724674240011,-750.06,0.00012352,2]
[336033288,1724674240021,-500.0,0.00012352,2]
[336033290,1724674240030,-500.0,0.00012352,2]
[336033292,1724674240040,-518.29,0.00012352,2]
[336033294,1724674240050,-530.15,0.00012352,2]
[336033296,1724674240058,-544.52,0.00012352,2]
[336033298,1724674240068,-732.01,0.00012352,2]
[336033300,1724674240077,-340.38,0.00012352,2]
[336033302,1724674240086,-283.39,0.00012352,2]
[336033304,1724674240095,-870.43,0.00012352,2]
[336033306,1724674240104,-500.0,0.00012352,2]
[336033308,1724674240114,-1333.53,0.00012352,2]
[336033310,1724674240123,-1333.53,0.00012352,2]
[336033313,1724674240133,-188.28181867,0.00012353,2]
[336033315,1724674240142,-500.0,0.00012353,2]
[336033316,1724674240151,-500.0,0.00012353,2]
[336033319,1724674240164,-657.99,0.00012353,2]
[336033321,1724674240174,-500.0,0.00012353,2]
[336033323,1724674240183,-500.44982316,0.00012353,2]
[336033324,1724674240192,-500.0,0.00012353,2]
[336033327,1724674240202,-500.0,0.00012353,2]
[336033329,1724674240212,-500.0,0.00012353,2]
[336033330,1724674240221,-500.0,0.00012353,2]
[336033332,1724674240232,-203.1712821,0.00012353,2]
[336033335,1724674240242,-500.0,0.00012353,2]
[336033337,1724674240251,-500.0,0.00012353,2]
[336033339,1724674240261,-500.0,0.00012353,2]
[336033341,1724674240270,-500.0,0.00012353,2]
[336033343,1724674240279,-500.0,0.00012353,2]
[336033345,1724674240289,-500.0,0.00012353,2]
[336033347,1724674240298,-502.1449473,0.00012353,2]
[336033349,1724674240307,-500.0,0.00012353,2]
[336033351,1724674240316,-500.0,0.00012353,2]
[336033353,1724674240325,-501.097122,0.00012353,2]
[336033355,1724674240334,-644.35,0.00012353,2]
[336033356,1724674240344,-500.0,0.00012353,2]
[336033358,1724674240353,-500.0,0.00012353,2]
[336033361,1724674240363,-500.0,0.00012353,2]
[336033363,1724674240372,-500.0,0.00012353,2]
[336033365,1724674240382,-500.0,0.00012353,2]
[336033367,1724674240392,-574.54,0.00012353,2]
[336033369,1724674240402,-500.0,0.00012353,2]
[336033370,1724674240411,-500.0,0.00012353,2]
[336033372,1724674240420,-500.74342544,0.00012353,2]
[336033374,1724674240430,-500.0,0.00012353,2]
[336033376,1724674240439,-500.0,0.00012353,2]
[336033378,1724674240449,-500.0,0.00012353,2]
[336033379,1724674240458,-500.0,0.00012353,2]
[336033380,1724674240467,-500.0,0.00012353,2]
[336033381,1724674240477,-547.96049857,0.00012353,2]
[336033382,1724674240486,-500.0,0.00012353,2]
[336033383,1724674240495,-1251.78,0.00012353,2]
[336033384,1724674240504,-500.32335848,0.00012353,2]
[336033385,1724674240513,-501.41869027,0.00012353,2]
[336033386,1724674240522,-500.0,0.00012353,2]
[336033387,1724674240530,-1133.26,0.00012353,2]
[336033388,1724674240539,-500.0,0.00012353,2]
[336033389,1724674240548,-500.0,0.00012353,2]
[336033390,1724674240559,-811.47,0.00012353,2]
[336033391,1724674240568,-500.0,0.00012353,2]
[336033392,1724674240577,-500.0,0.00012353,2]
[336033393,1724674240586,-528.51238524,0.00012353,2]
[336033394,1724674240595,-862.74,0.00012353,2]
[336033395,1724674240604,-768.87,0.00012353,2]
[336033396,1724674240614,-500.0,0.00012353,2]
[336033397,1724674240625,-500.52711479,0.00012353,2]
[336033398,1724674240634,-602.82,0.00012353,2]
[336033399,1724674240643,-500.89650638,0.00012353,2]
[336033401,1724674240656,-846.81,0.00012353,2]
[336033403,1724674240666,-500.0,0.00012353,2]
[336033405,1724674240676,-500.0,0.00012353,2]
[336033407,1724674240688,-500.0,0.00012353,2]
[336033409,1724674240697,-785.71,0.00012353,2]
[336033410,1724674240707,-1923.0,0.00012353,2]
[336033412,1724674240717,-1343.68,0.00012353,2]
[336033414,1724674240726,-721.34,0.00012353,2]
[336033416,1724674240737,-500.0,0.00012353,2]
[336033418,1724674240746,-816.86,0.00012353,2]
[336033420,1724674240755,-500.0,0.00012353,2]
[336033422,1724674240765,-500.0,0.00012353,2]
[336033424,1724674240774,-564.63,0.00012353,2]
[336033426,1724674240784,-500.0,0.00012353,2]
[336033428,1724674240793,-500.0,0.00012353,2]
[336033430,1724674240802,-500.0,0.00012353,2]
[336033432,1724674240811,-640.02,0.00012353,2]
[336033434,1724674240821,-1102.52,0.00012353,2]
[336033436,1724674240831,-2030.46,0.00012353,2]
[336033438,1724674240840,-917.82,0.00012353,2]
[336033440,1724674240849,-790.34,0.00012353,2]
[336033442,1724674240859,-500.0,0.00012353,2]
[336033444,1724674240869,-500.0,0.00012353,2]
[336033446,1724674240878,-500.0,0.00012353,2]
[336033448,1724674240888,-1316.96,0.00012353,2]
[336033450,1724674240899,-500.0,0.00012353,2]
[336033452,1724674240908,-500.0,0.00012353,2]
[336033453,1724674240918,-612.34,0.00012353,2]
[336033455,1724674240927,-500.0,0.00012353,2]
[336033457,1724674240937,-500.0,0.00012353,2]
[336033459,1724674240947,-502.12998147,0.00012353,2]
[336033461,1724674240956,-500.0,0.00012353,2]
[336033463,1724674240965,-500.0,0.00012353,2]
[336033465,1724674240975,-1142.63,0.00012353,2]
[336033467,1724674240985,-500.0,0.00012353,2]
[336033469,1724674240995,-500.0,0.00012353,2]
[336033472,1724674241005,-500.0,0.00012353,2]
[336033474,1724674241015,-567.85,0.00012353,2]
[336033476,1724674241024,-500.0,0.00012353,2]
[336033477,1724674241034,-652.08,0.00012353,2]
[336033479,1724674241043,-500.0,0.00012353,2]
[336033481,1724674241052,-500.0,0.00012353,2]
[336033483,1724674241062,-500.0,0.00012353,2]
[336033485,1724674241072,-500.0,0.00012353,2]
[336033487,1724674241081,-500.0,0.00012353,2]
[336033489,1724674241090,-9249.06,0.00012353,2]
[336033491,1724674241100,-1207.61,0.00012353,2]
[336033493,1724674241109,-747.98,0.00012353,2]
[336033495,1724674241119,-500.0,0.00012353,2]
[336033497,1724674241129,-500.0,0.00012353,2]
[336033499,1724674241139,-500.0,0.00012353,2]
[336033501,1724674241148,-500.0,0.00012353,2]
[336033503,1724674241160,-981.07,0.00012353,2]
[336033505,1724674241170,-500.0,0.00012353,2]
[336033507,1724674241179,-1043.14,0.00012353,2]
[336033509,1724674241188,-598.05619566,0.00012353,2]
[336033511,1724674241198,-754.28,0.00012353,2]
[336033513,1724674241207,-500.0,0.00012353,2]
[336033515,1724674241217,-500.0,0.00012353,2]
[336033517,1724674241226,-500.0,0.00012353,2]
[336033519,1724674241237,-720.31,0.00012353,2]
[336033521,1724674241246,-161.61119404,0.00012353,2]
[336033523,1724674241255,-500.0,0.00012353,2]
[336033525,1724674241264,-500.0,0.00012353,2]
[336033527,1724674241274,-1012.12,0.00012353,2]
[336033529,1724674241284,-501.5063266,0.00012353,2]
[336033531,1724674241293,-500.0,0.00012353,2]
[336033533,1724674241302,-800.44,0.00012353,2]
[336033535,1724674241312,-500.0,0.00012353,2]
[336033537,1724674241321,-500.0,0.00012353,2]
[336033539,1724674241332,-530.11209033,0.00012353,2]
[336033541,1724674241343,-500.0,0.00012353,2]
[336033543,1724674241352,-500.0,0.00012353,2]
[336033545,1724674241362,-500.0,0.00012353,2]
[336033568,1724674241560,-503.00657275,0.00012353,2]
[336033570,1724674241570,-520.86,0.00012353,2]
[336033572,1724674241579,-663.82,0.00012353,2]
[336033574,1724674241588,-500.0,0.00012353,2]
[336033576,1724674241598,-500.0,0.00012353,2]
[336033578,1724674241608,-3376.24,0.00012353,2]
[336033580,1724674241618,-500.0,0.00012353,2]
[336033582,1724674241627,-500.0,0.00012353,2]
[336033584,1724674241637,-502.91890564,0.00012353,2]
[336033586,1724674241646,-681.91,0.00012353,2]
[336033588,1724674241655,-500.0,0.00012353,2]
[336033590,1724674241665,-500.0,0.00012353,2]
[336033592,1724674241674,-500.0,0.00012353,2]
[336033594,1724674241683,-500.0,0.00012353,2]
[336033596,1724674241692,-500.0,0.00012353,2]
[336033598,1724674241702,-511.81065849,0.00012353,2]
[336033600,1724674241711,-889.08,0.00012353,2]
[336033602,1724674241721,-500.0,0.00012353,2]
[336033604,1724674241730,-1269.35,0.00012353,2]
[336033606,1724674241740,-599.43,0.00012353,2]
[336033608,1724674241750,-500.0,0.00012353,2]
[336033610,1724674241759,-500.0,0.00012353,2]
[336033612,1724674241768,-500.0,0.00012353,2]
[336033614,1724674241777,-537.19,0.00012353,2]
[336033616,1724674241786,-1092.86,0.00012353,2]
[336033618,1724674241795,-500.0,0.00012353,2]
[336033620,1724674241804,-295.15806935,0.00012353,2]
[336033622,1724674241813,-500.0,0.00012353,2]
[336033624,1724674241824,-770.26,0.00012353,2]
[336033626,1724674241833,-500.0,0.00012353,2]
[336033628,1724674241842,-500.0,0.00012353,2]
[336033630,1724674241852,-880.09,0.00012353,2]
[336033632,1724674241861,-510.37,0.00012353,2]
[336033634,1724674241870,-500.0,0.00012353,2]
[336033636,1724674241879,-500.0,0.00012353,2]
[336033638,1724674241888,-500.0,0.00012353,2]
[336033640,1724674241898,-906.16,0.00012353,2]
[336033642,1724674241908,-500.0,0.00012353,2]
[336033644,1724674241917,-500.0,0.00012353,2]
[336033646,1724674241926,-500.0,0.00012353,2]
[336033648,1724674241935,-527.66,0.00012353,2]
[336033650,1724674241944,-606.12,0.00012353,2]
[336033652,1724674241953,-500.0,0.00012353,2]
[336033654,1724674241963,-500.0,0.00012353,2]
[336033656,1724674241973,-500.0,0.00012353,2]
[336033658,1724674241984,-307.66653957,0.00012353,2]
[336033760,1724674242919,-207.19346043,0.00012353,2]
[336033762,1724674242929,-500.0,0.00012353,2]
[336033764,1724674242939,-590.1,0.00012353,2]
[336033766,1724674242949,-500.0,0.00012353,2]
[336033768,1724674242959,-641.25,0.00012353,2]
[336033770,1724674242969,-983.87,0.00012353,2]
[336033773,1724674242979,-500.0,0.00012353,2]
[336033775,1724674242989,-500.0,0.00012353,2]
[336033777,1724674242998,-1140.91,0.00012353,2]
[336033779,1724674243008,-500.0,0.00012353,2]
[336033781,1724674243018,-1084.05,0.00012353,2]
[336033783,1724674243027,-539.51,0.00012353,2]
[336033785,1724674243037,-580.69,0.00012353,2]
[336033787,1724674243046,-520.41606326,0.00012353,2]
[336033789,1724674243057,-1393.98,0.00012353,2]
[336033791,1724674243067,-500.0,0.00012353,2]
[336033793,1724674243077,-799.37,0.00012353,2]
[336033795,1724674243086,-597.09,0.00012353,2]
[336033798,1724674243096,-500.0,0.00012353,2]
[336033800,1724674243106,-500.0,0.00012353,2]
[336033802,1724674243115,-500.0,0.00012353,2]
[336033804,1724674243124,-500.0,0.00012353,2]
[336033806,1724674243134,-500.0,0.00012353,2]
[336033808,1724674243143,-500.0,0.00012353,2]
[336033810,1724674243155,-500.0,0.00012353,2]
[336033812,1724674243165,-776.62,0.00012353,2]
[336033814,1724674243175,-1321.01,0.00012353,2]
[336033816,1724674243184,-500.0,0.00012353,2]
[336033818,1724674243193,-914.1,0.00012353,2]
[336033820,1724674243204,-500.0,0.00012353,2]
[336033822,1724674243214,-636.62,0.00012353,2]
[336033824,1724674243223,-500.0,0.00012353,2]
[336033826,1724674243234,-500.0,0.00012353,2]
[336033828,1724674243244,-500.0,0.00012353,2]
[336033830,1724674243254,-500.0,0.00012353,2]
[336033832,1724674243264,-500.0,0.00012353,2]
[336033834,1724674243273,-519.42282598,0.00012353,2]
[336033836,1724674243282,-657.37,0.00012353,2]
[336033838,1724674243292,-593.42,0.00012353,2]
[336033840,1724674243302,-737.97,0.00012353,2]
[336033842,1724674243311,-500.0,0.00012353,2]
[336033844,1724674243321,-500.0,0.00012353,2]
[336033846,1724674243332,-832.77,0.00012353,2]
[336033848,1724674243341,-500.0,0.00012353,2]
[336033850,1724674243350,-501.7957613,0.00012353,2]
[336033852,1724674243360,-667.27,0.00012353,2]
[336033854,1724674243372,-858.43,0.00012353,2]
[336033856,1724674243382,-500.0,0.00012353,2]
[336033858,1724674243392,-500.0,0.00012353,2]
[336033860,1724674243402,-500.0,0.00012353,2]
[336033862,1724674243411,-500.0,0.00012353,2]
[336033865,1724674243421,-1148.29,0.00012354,2]
[336033867,1724674243430,-500.0,0.00012354,2]
[336033869,1724674243440,-500.0,0.00012354,2]
[336033871,1724674243449,-545.4,0.00012354,2]
[336033873,1724674243459,-1070.66,0.00012354,2]
[336033875,1724674243469,-719.55,0.00012354,2]
[336033877,1724674243479,-668.35,0.00012354,2]
[336033879,1724674243488,-500.0,0.00012354,2]
[336033881,1724674243498,-631.58,0.00012354,2]
[336033883,1724674243507,-500.0,0.00012354,2]
[336033885,1724674243516,-500.0,0.00012354,2]
[336033887,1724674243525,-500.0,0.00012354,2]
[336033889,1724674243535,-716.47,0.00012354,2]
[336033891,1724674243545,-500.0,0.00012354,2]
[336033893,1724674243556,-500.0,0.00012354,2]
[336033895,1724674243565,-381.11290446,0.00012354,2]
[336033897,1724674243574,-500.0,0.00012354,2]
[336033899,1724674243584,-620.63,0.00012354,2]
[336033901,1724674243593,-916.29,0.00012354,2]
[336033903,1724674243602,-500.0,0.00012354,2]
[336033905,1724674243612,-500.0,0.00012354,2]
[336033907,1724674243622,-792.22,0.00012354,2]
[336033909,1724674243633,-656.07,0.00012354,2]
[336033912,1724674243644,-846.81,0.00012354,2]
[336033914,1724674243655,-599.43,0.00012354,2]
[336033916,1724674243665,-500.0,0.00012354,2]
[336033918,1724674243674,-1333.53,0.00012424,2]
[336033920,1724674243684,-1333.53,0.00012433,2]
[336033922,1724674243693,-41667.14466406,0.00012434,2]
[336034128,1724674245848,-333.3986771,0.00012352,2]
[336034130,1724674245861,-705.4113229,0.00012352,2]
[336034132,1724674245871,-500.0,0.00012353,2]
[336034134,1724674245881,-1484.79291804,0.00012434,2]
[336034350,1724674247981,-238.462928,0.000134,30]
[336035171,1724674270053,-1000.0,0.00013,13]
[336035173,1724674286397,-1000.0,0.00015,15]
[336035174,1724674299597,-1049.72,0.000152,31]
[336035175,1724674299623,-950.28,0.000152,31]
[336035176,1724674302991,-99.44,0.000152,31]
[336035177,1724674303020,-1049.72,0.000152,31]
[336035178,1724674303050,-850.84,0.000152,31]
[336035179,1724674345273,-198.88,0.000152,31]
[336035180,1724674345300,-1049.72,0.000152,31]
[336035181,1724674345327,-751.4,0.000152,31]
[336035182,1724674346751,-298.32,0.000152,31]
[336035183,1724674346779,-1049.72,0.000152,31]
[336035184,1724674346805,-651.96,0.000152,31]
[336035185,1724674348042,-397.76,0.000152,31]
[336035186,1724674348068,-1049.72,0.000152,31]
[336035187,1724674348094,-552.52,0.000152,31]
[336035188,1724674354019,-497.2,0.000152,31]
[336035189,1724674354048,-302.8,0.000152,31]
[336035190,1724674360151,-746.92,0.000152,31]
[336035191,1724674360177,-353.08,0.000152,31]
[336035192,1724674366232,-696.64,0.000152,31]
[336035193,1724674366258,-302.36,0.000152,31]
[336035194,1724674441134,-200.0,0.00020692,120]
[336035218,1724675237115,-8822.3271744,0.00011234,2]
[336035219,1724675237136,-404.54795051,0.00011731,2]
[336035220,1724675237159,-300.0,0.00011841,2]
[336035221,1724675237180,-18452.72413931,0.00011842,2]
[336035222,1724675237201,-997.5576312,0.00012254,2]
[336035223,1724675237223,-14189.285147,0.00012341,2]
[336035224,1724675237245,-500.0,0.00012341,2]
[336035225,1724675237265,-505.20507271,0.00012341,2]
[336035226,1724675237286,-693.75,0.00012341,2]
[336035227,1724675237307,-712.98,0.00012341,2]
[336035228,1724675237328,-1073.22,0.00012341,2]
[336035229,1724675237350,-500.0,0.00012341,2]
[336035230,1724675237373,-627.18,0.00012341,2]
[336035231,1724675237395,-500.0,0.00012341,2]
[336035232,1724675237416,-550.99,0.00012341,2]
[336035233,1724675237436,-1100.59,0.00012341,2]
[336035234,1724675237458,-870.43,0.00012341,2]
[336035235,1724675237482,-500.0,0.00012342,2]
[336035236,1724675237503,-731.85,0.00012342,2]
[336035237,1724675237527,-500.0,0.00012342,2]
[336035238,1724675237564,-995.53,0.00012342,2]
[336035239,1724675237586,-761.32,0.00012342,2]
[336035240,1724675237618,-593.97,0.00012342,2]
[336035241,1724675237641,-500.0,0.00012342,2]
[336035242,1724675237663,-500.0,0.00012342,2]
[336035243,1724675237684,-500.0,0.00012342,2]
[336035244,1724675237706,-893.42,0.00012342,2]
[336035245,1724675237728,-990.55,0.00012342,2]
[336035246,1724675237751,-500.0,0.00012342,2]
[336035247,1724675237771,-641.37,0.00012342,2]
[336035248,1724675237792,-693.44,0.00012342,2]
[336035249,1724675237815,-529.99,0.00012342,2]
[336035250,1724675237836,-585.81,0.00012342,2]
[336035251,1724675237857,-500.0,0.00012342,2]
[336035252,1724675237878,-500.0,0.00012342,2]
[336035253,1724675237898,-500.0,0.00012342,2]
[336035254,1724675237920,-614.58,0.00012342,2]
[336035255,1724675237940,-500.0,0.00012342,2]
[336035256,1724675237963,-750.06,0.00012342,2]
[336035257,1724675237984,-500.0,0.00012342,2]
[336035258,1724675238005,-500.0,0.00012342,2]
[336035259,1724675238027,-539.12,0.00012342,2]
[336035260,1724675238047,-625.02,0.00012342,2]
[336035261,1724675238067,-500.0,0.00012342,2]
[336035262,1724675238090,-340.38,0.00012342,2]
[336035263,1724675238115,-624.36,0.00012342,2]
[336035264,1724675238138,-825.23,0.00012342,2]
[336035265,1724675238163,-283.39,0.00012342,2]
[336035266,1724675238186,-1333.53,0.00012342,2]
[336035267,1724675238208,-657.99,0.00012342,2]
[336035268,1724675238229,-832.3,0.00012342,2]
[336035269,1724675238251,-500.0,0.00012342,2]
[336035270,1724675238280,-500.0,0.00012342,2]
[336035271,1724675238303,-500.0,0.00012342,2]
[336035272,1724675238324,-2082.01,0.00012342,2]
[336035273,1724675238347,-574.54,0.00012342,2]
[336035274,1724675238371,-27613.32863948,0.00012342,2]
[336035302,1724675438678,-897.80186808,0.00012333,2]
[336035303,1724675438691,-300.0,0.00012339,2]
[336035304,1724675438706,-500.0,0.0001234,2]
[336035305,1724675438717,-662.21,0.0001234,2]
[336035306,1724675438728,-500.0,0.0001234,2]
[336035307,1724675438741,-711.37,0.0001234,2]
[336035308,1724675438754,-500.0,0.0001234,2]
[336035309,1724675438767,-616.15,0.0001234,2]
[336035310,1724675438780,-813.5,0.0001234,2]
[336035311,1724675438794,-718.81,0.0001234,2]
[336035312,1724675438809,-500.0,0.0001234,2]
[336035313,1724675438823,-500.0,0.0001234,2]
[336035314,1724675438834,-621.88,0.0001234,2]
[336035315,1724675438845,-516.66,0.0001234,2]
[336035316,1724675438856,-500.0,0.0001234,2]
[336035317,1724675438869,-598.35,0.0001234,2]
[336035318,1724675438883,-523.69,0.0001234,2]
[336035319,1724675438894,-1277.96,0.0001234,2]
[336035320,1724675438907,-528.03,0.0001234,2]
[336035321,1724675438920,-701.35,0.0001234,2]
[336035322,1724675438932,-797.62,0.0001234,2]
[336035323,1724675438944,-500.0,0.0001234,2]
[336035324,1724675438955,-7607.24589917,0.00012341,2]
[336035325,1724675438990,-28690.21747393,0.00012341,2]
[336035326,1724675439006,-687.85,0.00012341,2]
[336035327,1724675439018,-1316.96,0.00012341,2]
[336035328,1724675439030,-500.0,0.00012341,2]
[336035329,1724675439042,-23636.51,0.00012341,2]
[336035330,1724675439054,-1043.14,0.00012341,2]
[336035331,1724675439066,-1066.24,0.00012341,2]
[336035332,1724675439079,-500.0,0.00012341,2]
[336035333,1724675439090,-510.37,0.00012341,2]
[336035334,1724675439102,-500.0,0.00012341,2]
[336035335,1724675439114,-1393.98,0.00012341,2]
[336035336,1724675439126,-1341.84,0.00012341,2]
[336035337,1724675439137,-1277.96,0.00012341,2]
[336035338,1724675439150,-500.0,0.00012341,2]
[336035339,1724675439162,-832.77,0.00012341,2]
[336035340,1724675439174,-1214.19,0.00012342,2]
[336035341,1724675439186,-500.0,0.00012342,2]
[336035342,1724675439198,-500.0,0.00012342,2]
[336035343,1724675439210,-652.08,0.00012342,2]
[336035344,1724675439222,-1251.78,0.00012342,2]
[336035345,1724675439233,-501.41869027,0.00012342,2]
[336035346,1724675439246,-500.0,0.00012342,2]
[336035347,1724675439258,-500.0,0.00012342,2]
[336035348,1724675439270,-780.88,0.00012342,2]
[336035349,1724675439282,-500.0,0.00012342,2]
[336035350,1724675439294,-720.31,0.00012342,2]
[336035351,1724675439306,-500.0,0.00012342,2]
[336035352,1724675439318,-500.0,0.00012342,2]
[336035353,1724675439331,-500.0,0.00012342,2]
[336035354,1724675439342,-846.81,0.00012342,2]
[336035355,1724675439354,-2.43288738,0.00012342,2]
[336035402,1724675440198,-497.56711262,0.00012342,2]
[336035406,1724675440222,-880.09,0.00012342,2]